fUSD/lending_fUSD_20250610
["ID","MTS","AMOUNT","RATE_DAILY","PERIOD"]
[365186446,1749525058651,-490.0,0.00016602,2]
[365186447,1749525058660,-489.39103233,0.00016602,2]
[365186448,1749525058670,-490.0,0.00016602,2]
[365186449,1749525058680,-490.0,0.00016602,2]
[365186450,1749525058690,-490.0,0.00016602,2]
[365186451,1749525058701,-490.0,0.00016602,2]
[365186452,1749525058710,-490.0,0.00016602,2]
[365186453,1749525058719,-490.0,0.00016602,2]
[365186454,1749525058729,-490.0,0.00016602,2]
[365186455,1749525058738,-490.0,0.00016602,2]
[365186456,1749525058747,-1687.14,0.00016602,2]
[365186457,1749525058757,-490.0,0.00016602,2]
[365186458,1749525058767,-490.0,0.00016602,2]
[365186459,1749525058776,-522.13680635,0.00016602,2]
[365186460,1749525058785,-280.15316534,0.00016602,2]
[365186461,1749525058795,-490.0,0.00016602,2]
[365186462,1749525058804,-636.6366562,0.00016602,2]
[365186463,1749525058813,-490.0,0.00016602,2]
[365186464,1749525058822,-835.39,0.00016602,2]
[365186465,1749525058831,-470.0,0.00016602,2]
[365186466,1749525058840,-467.54913703,0.00016602,2]
[365186467,1749525058850,-490.0,0.00016602,2]
[365186468,1749525058860,-490.0,0.00016602,2]
[365186469,1749525058869,-284.186462,0.00016602,2]
[365186470,1749525058878,-490.0,0.00016602,2]
[365186471,1749525058887,-490.0,0.00016602,2]
[365186472,1749525058897,-490.0,0.00016602,2]
[365186473,1749525058907,-988.78,0.00016602,2]
[365186474,1749525058917,-509.02,0.00016602,2]
[365186475,1749525058926,-490.0,0.00016602,2]
[365186476,1749525058935,-490.0,0.00016602,2]
[365186477,1749525058945,-490.0,0.00016602,2]
[365186478,1749525058954,-490.0,0.00016602,2]
[365186479,1749525058963,-520.99,0.00016602,2]
[365186480,1749525058972,-490.0,0.00016602,2]
[365186481,1749525058981,-490.0,0.00016602,2]
[365186482,1749525058991,-490.0,0.00016602,2]
[365186483,1749525059000,-490.0,0.00016602,2]
[365186484,1749525059010,-490.0,0.00016602,2]
[365186485,1749525059019,-490.0,0.00016602,2]
[365186486,1749525059028,-490.0,0.00016602,2]
[365186487,1749525059038,-490.0,0.00016602,2]
[365186488,1749525059047,-490.0,0.00016602,2]
[365186489,1749525059056,-490.0,0.00016602,2]
[365186490,1749525059066,-490.0,0.00016602,2]
[365186491,1749525059075,-406.34733628,0.00016602,2]
[365186492,1749525059084,-490.0,0.00016602,2]
[365186493,1749525059094,-874.46,0.00016602,2]
[365186494,1749525059104,-433.23510639,0.00016602,2]
[365186495,1749525059113,-490.0,0.00016602,2]
[365186496,1749525059122,-490.0,0.00016602,2]
[365186497,1749525059131,-490.0,0.00016602,2]
[365186498,1749525059141,-490.0,0.00016602,2]
[365186499,1749525059150,-1615.08,0.00016602,2]
[365186500,1749525059159,-490.0,0.00016602,2]
[365186501,1749525059169,-490.0,0.00016602,2]
[365186502,1749525059178,-490.0,0.00016602,2]
[365186503,1749525059188,-296.877207,0.00016602,2]
[365186504,1749525059197,-490.0,0.00016602,2]
[365186505,1749525059207,-296.877207,0.00016602,2]
[365186506,1749525059216,-490.0,0.00016602,2]
[365186507,1749525059226,-296.877207,0.00016602,2]
[365186508,1749525059236,-529.84,0.00016602,2]
[365186509,1749525059245,-296.877207,0.00016602,2]
[365186510,1749525059255,-244.59363276,0.00016602,2]
[365186511,1749525059264,-535.48632947,0.00016602,2]
[365186512,1749525059274,-490.0,0.00016602,2]
[365186513,1749525059283,-296.877207,0.00016602,2]
[365186514,1749525059293,-1075.4,0.00016602,2]
[365186515,1749525059303,-296.877207,0.00016602,2]
[365186516,1749525059313,-406.22654964,0.00016602,2]
[365186517,1749525059322,-296.877207,0.00016602,2]
[365186518,1749525059332,-296.877207,0.00016602,2]
[365186519,1749525059341,-655.8,0.00016602,2]
[365186520,1749525059351,-490.0,0.00016602,2]
[365186521,1749525059362,-496.35268129,0.00016602,2]
[365186522,1749525059371,-490.0,0.00016602,2]
[365186523,1749525059381,-490.0,0.00016602,2]
[365186524,1749525059391,-490.0,0.00016602,2]
[365186525,1749525059401,-553.14,0.00016602,2]
[365186526,1749525059411,-709.07,0.00016602,2]
[365186527,1749525059422,-490.0,0.00016602,2]
[365186528,1749525059432,-1655.79,0.00016602,2]
[365186529,1749525059441,-470.60623863,0.00016602,2]
[365186530,1749525059450,-490.0,0.00016602,2]
[365186531,1749525059460,-2379.12,0.00016602,2]
[365186532,1749525059470,-490.0,0.00016602,2]
[365186533,1749525059479,-490.0,0.00016602,2]
[365186534,1749525059489,-490.0,0.00016602,2]
[365186535,1749525059498,-585.80479975,0.00016602,2]
[365186536,1749525059508,-490.0,0.00016602,2]
[365186537,1749525059517,-490.0,0.00016602,2]
[365186538,1749525059528,-637.09,0.00016602,2]
[365186539,1749525059538,-490.0,0.00016602,2]
[365186540,1749525059547,-1068.67,0.00016602,2]
[365186541,1749525059559,-490.0,0.00016602,2]
[365186542,1749525059569,-490.0,0.00016602,2]
[365186543,1749525059578,-490.0,0.00016602,2]
[365186544,1749525059592,-490.0,0.00016602,2]
[365186545,1749525059602,-490.0,0.00016602,2]
[365186546,1749525059611,-927.29,0.00016602,2]
[365186547,1749525059620,-480.57626295,0.00016602,2]
[365186548,1749525059630,-151.0,0.00016602,2]
[365186549,1749525059640,-490.0,0.00016602,2]
[365186550,1749525059650,-739.16,0.00016602,2]
[365186551,1749525059660,-151.0,0.00016602,2]
[365186552,1749525059670,-848.47,0.00016602,2]
[365186553,1749525059679,-151.0,0.00016602,2]
[365186554,1749525059689,-210.23079431,0.00016602,2]
[365186555,1749525059698,-151.0,0.00016602,2]
[365186556,1749525059708,-490.0,0.00016602,2]
[365186557,1749525059717,-490.0,0.00016602,2]
[365186558,1749525059726,-490.0,0.00016602,2]
[365186559,1749525059735,-490.0,0.00016602,2]
[365186560,1749525059745,-490.0,0.00016602,2]
[365186561,1749525059755,-490.0,0.00016602,2]
[365186562,1749525059764,-504.97558544,0.00016602,2]
[365186563,1749525059774,-1641.81,0.00016602,2]
[365186564,1749525059784,-490.0,0.00016602,2]
[365186565,1749525059794,-490.0,0.00016602,2]
[365186566,1749525059804,-2238.41,0.00016602,2]
[365186567,1749525059813,-490.0,0.00016602,2]
[365186568,1749525059822,-490.0,0.00016602,2]
[365186569,1749525059831,-659.57,0.00016602,2]
[365186570,1749525059840,-490.0,0.00016602,2]
[365186571,1749525059850,-490.0,0.00016602,2]
[365186572,1749525059859,-443.20549465,0.00016602,2]
[365186573,1749525059868,-1065.02,0.00016602,2]
[365186574,1749525059877,-445.71957995,0.00016602,2]
[365186575,1749525059887,-490.0,0.00016602,2]
[365186576,1749525059896,-1338.38,0.00016602,2]
[365186577,1749525059905,-490.0,0.00016602,2]
[365186578,1749525059914,-490.0,0.00016602,2]
[365186579,1749525059923,-490.0,0.00016602,2]
[365186580,1749525059933,-450.07834467,0.00016602,2]
[365186581,1749525059943,-490.0,0.00016602,2]
[365186582,1749525059952,-490.0,0.00016602,2]
[365186583,1749525059962,-490.0,0.00016602,2]
[365186584,1749525059971,-490.0,0.00016602,2]
[365186585,1749525059980,-490.0,0.00016602,2]
[365186586,1749525059990,-276.91364046,0.00016602,2]
[365186587,1749525060001,-490.0,0.00016602,2]
[365186588,1749525060011,-490.0,0.00016602,2]
[365186589,1749525060020,-490.0,0.00016602,2]
[365186590,1749525060030,-1000.0,0.00016602,2]
[365186591,1749525060040,-897.68,0.00016602,2]
[365186592,1749525060050,-490.0,0.00016602,2]
[365186593,1749525060060,-490.0,0.00016602,2]
[365186594,1749525060069,-517.29,0.00016602,2]
[365186595,1749525060079,-490.0,0.00016602,2]
[365186596,1749525060088,-639.59,0.00016602,2]
[365186597,1749525060098,-490.0,0.00016602,2]
[365186598,1749525060107,-490.0,0.00016602,2]
[365186599,1749525060117,-490.0,0.00016602,2]
[365186600,1749525060126,-490.0,0.00016602,2]
[365186601,1749525060136,-490.0,0.00016602,2]
[365186602,1749525060145,-490.0,0.00016602,2]
[365186603,1749525060155,-490.0,0.00016602,2]
[365186604,1749525060164,-1634.79,0.00016602,2]
[365186605,1749525060174,-490.0,0.00016602,2]
[365186606,1749525060183,-795.78,0.00016602,2]
[365186607,1749525060193,-490.0,0.00016602,2]
[365186608,1749525060202,-490.0,0.00016602,2]
[365186609,1749525060212,-490.0,0.00016602,2]
[365186610,1749525060221,-490.0,0.00016602,2]
[365186611,1749525060231,-499.37,0.00016602,2]
[365186612,1749525060241,-1983.09,0.00016602,2]
[365186613,1749525060250,-490.0,0.00016602,2]
[365186614,1749525060259,-490.0,0.00016602,2]
[365186615,1749525060269,-209.51672899,0.00016602,2]
[365186616,1749525060279,-490.0,0.00016602,2]
[365186617,1749525060289,-490.0,0.00016602,2]
[365186618,1749525060299,-1184.87,0.00016602,2]
[365186619,1749525060309,-490.0,0.00016602,2]
[365186620,1749525060319,-490.0,0.00016602,2]
[365186621,1749525060328,-490.0,0.00016602,2]
[365186622,1749525060338,-42056.12,0.00016602,2]
[365186623,1749525060348,-490.0,0.00016602,2]
[365186624,1749525060358,-360.0,0.00016602,2]
[365186625,1749525060367,-490.0,0.00016602,2]
[365186626,1749525060378,-490.0,0.00016602,2]
[365186627,1749525060388,-490.0,0.00016602,2]
[365186628,1749525060397,-504.15882758,0.00016602,2]
[365186629,1749525060407,-490.0,0.00016602,2]
[365186630,1749525060417,-490.0,0.00016602,2]
[365186631,1749525060428,-462.37456233,0.00016602,2]
[365186632,1749525060438,-490.0,0.00016602,2]
[365186633,1749525060448,-490.0,0.00016602,2]
[365186634,1749525060457,-490.0,0.00016602,2]
[365186635,1749525060467,-490.0,0.00016602,2]
[365186636,1749525060477,-605.98,0.00016602,2]
[365186637,1749525060486,-491.03,0.00016602,2]
[365186638,1749525060496,-490.0,0.00016602,2]
[365186639,1749525060505,-497.21,0.00016602,2]
[365186640,1749525060515,-611.73,0.00016602,2]
[365186641,1749525060525,-490.0,0.00016602,2]
[365186642,1749525060535,-730.26,0.00016602,2]
[365186643,1749525060545,-1437.03,0.00016602,2]
[365186644,1749525060555,-472.10405832,0.00016602,2]
[365186645,1749525060568,-490.0,0.00016602,2]
[365186646,1749525060577,-4445.982985,0.00016602,2]
[365186647,1749525060591,-490.0,0.00016602,2]
[365186648,1749525060599,-236.819571,0.00016602,2]
[365186649,1749525060609,-490.0,0.00016602,2]
[365186650,1749525060618,-490.0,0.00016602,2]
[365186651,1749525060627,-212.85857082,0.00016602,2]
[365186652,1749525060638,-490.0,0.00016602,2]
[365186653,1749525060647,-490.0,0.00016602,2]
[365186654,1749525060656,-835.66,0.00016602,2]
[365186655,1749525060665,-530.25190469,0.00016602,2]
[365186656,1749525060675,-580.2983564,0.00016602,2]
[365186657,1749525060685,-700.0,0.00016612,2]
[365186658,1749525060694,-447.27867803,0.00016627,2]
[365186659,1749525060703,-364.18107276,0.0001663,2]
[365186660,1749525060712,-2241.0,0.00016638,2]
[365186661,1749525060721,-1628.4580659,0.00016641,2]
[365186662,1749525060730,-164.41315124,0.00016666,2]
[365186663,1749525060739,-252.83569812,0.00016667,2]
[365186664,1749525060748,-173.35164414,0.00016667,2]
[365186665,1749525060758,-385.30052307,0.00016673,2]
[365186666,1749525060767,-502.31133285,0.00016673,2]
[365186667,1749525060776,-503.87149173,0.00016673,2]
[365186668,1749525060786,-500.0,0.00016673,2]
[365186669,1749525060796,-500.0,0.00016673,2]
[365186670,1749525060805,-500.0,0.00016673,2]
[365186671,1749525060815,-500.0,0.00016673,2]
[365186672,1749525060824,-500.2555912,0.00016673,2]
[365186673,1749525060834,-500.0,0.00016673,2]
[365186674,1749525060843,-500.0,0.00016673,2]
[365186675,1749525060852,-833.29909032,0.00016681,2]
[365186676,1749525060861,-364.18107276,0.00016685,2]
[365186677,1749525060871,-697.59095762,0.00016689,2]
[365186678,1749525060880,-170.69,0.000167,2]
[365186679,1749525060889,-1163.41,0.000167,2]
[365186680,1749525060898,-170.69,0.000167,2]
[365186681,1749525060907,-150.0,0.000167,2]
[365186682,1749525060916,-806.63,0.000167,2]
[365186683,1749525060926,-150.0,0.000167,2]
[365186684,1749525060935,-1163.41,0.000167,2]
[365186685,1749525060944,-878.83,0.000167,2]
[365186686,1749525060953,-983.06,0.000167,2]
[365186687,1749525060962,-794.19,0.000167,2]
[365186688,1749525060972,-1162.98,0.000167,2]
[365186689,1749525060981,-908.45,0.000167,2]
[365186690,1749525060990,-461.04,0.000167,2]
[365186691,1749525061000,-150.0,0.00016706,2]
[365186692,1749525061009,-150.0,0.00016708,2]
[365186693,1749525061019,-354.51,0.00016712,2]
[365186694,1749525061028,-354.51,0.00016712,2]
[365186695,1749525061037,-354.51,0.00016712,2]
[365186696,1749525061046,-354.51,0.00016712,2]
[365186697,1749525061056,-354.51,0.00016712,2]
[365186698,1749525061065,-357.41,0.00016712,2]
[365186699,1749525061074,-163.33,0.00016712,2]
[365186700,1749525061083,-163.33,0.00016712,2]
[365186701,1749525061092,-163.33,0.00016712,2]
[365186702,1749525061101,-163.33,0.00016712,2]
[365186703,1749525061111,-163.33,0.00016712,2]
[365186704,1749525061120,-163.33,0.00016712,2]
[365186705,1749525061130,-163.33,0.00016712,2]
[365186706,1749525061139,-326.63,0.00016712,2]
[365186707,1749525061148,-163.33,0.00016712,2]
[365186708,1749525061157,-163.33,0.00016712,2]
[365186709,1749525061166,-150.0,0.00016714,2]
[365186710,1749525061175,-150.0,0.00016714,2]
[365186711,1749525061185,-2241.0,0.00016718,2]
[365186712,1749525061194,-1000.0,0.00016719,2]
[365186713,1749525061204,-1000.0,0.0001672,2]
[365186714,1749525061213,-150.0,0.00016721,2]
[365186715,1749525061223,-150.0,0.00016721,2]
[365186716,1749525061232,-1000.0,0.00016724,2]
[365186717,1749525061241,-150.0,0.00016727,2]
[365186718,1749525061251,-150.0,0.00016729,2]
[365186719,1749525061260,-1000.0,0.00016729,2]
[365186720,1749525061269,-150.0,0.00016731,2]
[365186721,1749525061278,-151.70620233,0.00016737,2]
[365186722,1749525061288,-150.0,0.00016739,2]
[365186723,1749525061297,-150.0,0.00016744,2]
[365186724,1749525061306,-150.0,0.00016748,2]
[365186725,1749525061315,-1000.0,0.0001675,2]
[365186726,1749525061324,-150.0,0.00016757,2]
[365186727,1749525061512,-150.0,0.00016761,2]
[365186728,1749525061522,-150.0,0.00016763,2]
[365186729,1749525061532,-2241.0,0.00016766,2]
[365186730,1749525061541,-500.0,0.00016766,2]
[365186731,1749525061551,-561.53,0.00016766,2]
[365186732,1749525061561,-730.31,0.00016766,2]
[365186733,1749525061570,-950.89,0.00016766,2]
[365186734,1749525061581,-950.89,0.00016766,2]
[365186735,1749525061593,-664.92,0.00016766,2]
[365186736,1749525061604,-664.92,0.00016766,2]
[365186737,1749525061613,-500.0,0.00016766,2]
[365186738,1749525061623,-300.0,0.00016766,2]
[365186739,1749525061634,-300.0,0.00016766,2]
[365186740,1749525061644,-552.09903216,0.00016767,2]
[365186741,1749525061654,-571.37814463,0.00016767,2]
[365186742,1749525061664,-490.0,0.00016767,2]
[365186743,1749525061674,-490.0,0.00016767,2]
[365186744,1749525061684,-490.0,0.00016767,2]
[365186745,1749525061694,-320.7911024,0.00016767,2]
[365186746,1749525061705,-490.0,0.00016767,2]
[365186747,1749525061715,-451.44259493,0.00016767,2]
[365186748,1749525061725,-466.86513775,0.00016767,2]
[365186749,1749525061734,-490.0,0.00016767,2]
[365186750,1749525061743,-490.0,0.00016767,2]
[365186751,1749525061752,-450.0,0.00016767,2]
[365186752,1749525061762,-490.0,0.00016767,2]
[365186753,1749525061771,-490.0,0.00016767,2]
[365186754,1749525061780,-490.0,0.00016767,2]
[365186755,1749525061789,-457.85796981,0.00016767,2]
[365186756,1749525061799,-490.0,0.00016767,2]
[365186757,1749525061808,-490.0,0.00016767,2]
[365186758,1749525061818,-490.0,0.00016767,2]
[365186759,1749525061827,-490.0,0.00016767,2]
[365186760,1749525061836,-450.0,0.00016767,2]
[365186761,1749525061846,-232.33040787,0.00016767,2]
[365186762,1749525061855,-490.0,0.00016767,2]
[365186763,1749525061864,-478.37236452,0.00016767,2]
[365186764,1749525061873,-266.77761955,0.00016767,2]
[365186765,1749525061882,-467.84150607,0.00016767,2]
[365186766,1749525061892,-490.0,0.00016767,2]
[365186767,1749525061901,-487.14658236,0.00016767,2]
[365186768,1749525061911,-473.34822925,0.00016767,2]
[365186769,1749525061920,-490.0,0.00016767,2]
[365186770,1749525061930,-490.0,0.00016767,2]
[365186771,1749525061939,-490.0,0.00016767,2]
[365186772,1749525061948,-490.0,0.00016767,2]
[365186773,1749525061958,-477.91858951,0.00016767,2]
[365186774,1749525061967,-490.0,0.00016767,2]
[365186775,1749525061976,-490.0,0.00016767,2]
[365186776,1749525061986,-490.0,0.00016767,2]
[365186777,1749525061995,-490.0,0.00016767,2]
[365186778,1749525062004,-490.0,0.00016767,2]
[365186779,1749525062013,-319.34229932,0.00016767,2]
[365186780,1749525062023,-490.0,0.00016767,2]
[365186781,1749525062032,-490.0,0.00016767,2]
[365186782,1749525062042,-490.0,0.00016767,2]
[365186783,1749525062051,-503.0,0.00016767,2]
[365186784,1749525062060,-706.89,0.00016767,2]
[365186785,1749525062070,-490.0,0.00016767,2]
[365186786,1749525062079,-490.0,0.00016767,2]
[365186787,1749525062088,-490.0,0.00016767,2]
[365186788,1749525062097,-665.87,0.00016767,2]
[365186789,1749525062106,-490.0,0.00016767,2]
[365186790,1749525062114,-490.0,0.00016767,2]
[365186791,1749525062123,-490.0,0.00016767,2]
[365186792,1749525062133,-504.72,0.00016767,2]
[365186793,1749525062142,-579.14,0.00016767,2]
[365186794,1749525062151,-490.0,0.00016767,2]
[365186795,1749525062160,-490.0,0.00016767,2]
[365186796,1749525062170,-618.91925568,0.00016767,2]
[365186797,1749525062179,-460.0,0.00016767,2]
[365186798,1749525062189,-459.46387448,0.00016767,2]
[365186799,1749525062198,-620.6210191,0.00016767,2]
[365186800,1749525062207,-490.0,0.00016767,2]
[365186801,1749525062216,-460.0,0.00016767,2]
[365186802,1749525062226,-448.13980411,0.00016767,2]
[365186803,1749525062236,-490.0,0.00016767,2]
[365186804,1749525062245,-490.0,0.00016767,2]
[365186805,1749525062255,-490.0,0.00016767,2]
[365186806,1749525062263,-490.0,0.00016767,2]
[365186807,1749525062273,-490.0,0.00016767,2]
[365186808,1749525062282,-490.0,0.00016767,2]
[365186809,1749525062292,-665.32,0.00016767,2]
[365186810,1749525062301,-490.0,0.00016767,2]
[365186811,1749525062311,-490.0,0.00016767,2]
[365186812,1749525062321,-490.0,0.00016767,2]
[365186813,1749525062330,-490.0,0.00016767,2]
[365186814,1749525062342,-490.0,0.00016767,2]
[365186815,1749525062351,-490.0,0.00016767,2]
[365186816,1749525062361,-490.0,0.00016767,2]
[365186817,1749525062370,-490.0,0.00016767,2]
[365186818,1749525062381,-490.0,0.00016767,2]
[365186819,1749525062391,-151.0,0.00016767,2]
[365186820,1749525062400,-490.0,0.00016767,2]
[365186821,1749525062410,-151.0,0.00016767,2]
[365186822,1749525062419,-151.0,0.00016767,2]
[365186823,1749525062428,-244.20336425,0.00016767,2]
[365186824,1749525062437,-490.0,0.00016767,2]
[365186825,1749525062447,-490.0,0.00016767,2]
[365186826,1749525062456,-490.0,0.00016767,2]
[365186827,1749525062465,-434.77944032,0.00016767,2]
[365186828,1749525062475,-490.0,0.00016767,2]
[365186829,1749525062484,-488.80489872,0.00016767,2]
[365186830,1749525062493,-490.0,0.00016767,2]
[365186831,1749525062503,-490.0,0.00016767,2]
[365186832,1749525062512,-490.0,0.00016767,2]
[365186833,1749525062522,-490.0,0.00016767,2]
[365186834,1749525062531,-490.0,0.00016767,2]
[365186835,1749525062541,-490.0,0.00016767,2]
[365186836,1749525062551,-490.0,0.00016767,2]
[365186837,1749525062560,-490.0,0.00016767,2]
[365186838,1749525062570,-490.0,0.00016767,2]
[365186839,1749525062580,-490.0,0.00016767,2]
[365186840,1749525062596,-644.96,0.00016767,2]
[365186841,1749525062616,-470.64849167,0.00016767,2]
[365186842,1749525062635,-490.0,0.00016767,2]
[365186843,1749525062645,-490.0,0.00016767,2]
[365186844,1749525062655,-490.0,0.00016767,2]
[365186845,1749525062664,-490.0,0.00016767,2]
[365186846,1749525062674,-490.0,0.00016767,2]
[365186847,1749525062683,-490.0,0.00016767,2]
[365186848,1749525062693,-490.0,0.00016767,2]
[365186849,1749525062702,-490.0,0.00016767,2]
[365186850,1749525062711,-490.0,0.00016767,2]
[365186851,1749525062720,-490.0,0.00016767,2]
[365186852,1749525062729,-490.0,0.00016767,2]
[365186853,1749525062738,-490.0,0.00016767,2]
[365186854,1749525062747,-614.43,0.00016767,2]
[365186855,1749525062756,-460.66948262,0.00016767,2]
[365186856,1749525062765,-490.0,0.00016767,2]
[365186857,1749525062774,-490.0,0.00016767,2]
[365186858,1749525062783,-490.0,0.00016767,2]
[365186859,1749525062793,-490.0,0.00016767,2]
[365186860,1749525062801,-490.0,0.00016767,2]
[365186861,1749525062811,-490.0,0.00016767,2]
[365186862,1749525062820,-490.0,0.00016767,2]
[365186863,1749525062829,-490.0,0.00016767,2]
[365186864,1749525062838,-490.0,0.00016767,2]
[365186865,1749525062847,-490.0,0.00016767,2]
[365186866,1749525062856,-862.63,0.00016767,2]
[365186867,1749525062865,-446.55893431,0.00016767,2]
[365186868,1749525062874,-490.0,0.00016767,2]
[365186869,1749525062883,-2092.76,0.00016767,2]
[365186870,1749525062893,-515.32344876,0.00016767,2]
[365186871,1749525062902,-151.0,0.00016767,2]
[365186872,1749525062911,-151.0,0.00016767,2]
[365186873,1749525062920,-151.0,0.00016767,2]
[365186874,1749525062929,-490.0,0.00016767,2]
[365186875,1749525062938,-490.0,0.00016767,2]
[365186876,1749525062947,-490.0,0.00016767,2]
[365186877,1749525062956,-237.060075,0.00016767,2]
[365186878,1749525062965,-490.0,0.00016767,2]
[365186879,1749525062975,-490.0,0.00016767,2]
[365186880,1749525062984,-490.0,0.00016767,2]
[365186881,1749525062993,-490.0,0.00016767,2]
[365186882,1749525063002,-490.0,0.00016767,2]
[365186883,1749525063011,-338.73314621,0.00016767,2]
[365186884,1749525063021,-490.0,0.00016767,2]
[365186885,1749525063031,-490.0,0.00016767,2]
[365186886,1749525063041,-490.0,0.00016767,2]
[365186887,1749525063050,-490.0,0.00016767,2]
[365186888,1749525063059,-490.0,0.00016767,2]
[365186889,1749525063069,-487.99977118,0.00016767,2]
[365186890,1749525063079,-441.00865674,0.00016767,2]
[365186891,1749525063090,-490.0,0.00016767,2]
[365186892,1749525063100,-490.0,0.00016767,2]
[365186893,1749525063110,-597.22,0.00016767,2]
[365186894,1749525063119,-490.0,0.00016767,2]
[365186895,1749525063129,-490.0,0.00016767,2]
[365186896,1749525063139,-490.0,0.00016767,2]
[365186897,1749525063149,-490.0,0.00016767,2]
[365186898,1749525063159,-490.0,0.00016767,2]
[365186899,1749525063168,-490.0,0.00016767,2]
[365186900,1749525063178,-490.0,0.00016767,2]
[365186901,1749525063188,-534.43706318,0.00016767,2]
[365186902,1749525063198,-490.0,0.00016767,2]
[365186903,1749525063208,-490.0,0.00016767,2]
[365186904,1749525063218,-490.0,0.00016767,2]
[365186905,1749525063227,-490.0,0.00016767,2]
[365186906,1749525063237,-490.0,0.00016767,2]
[365186907,1749525063247,-490.0,0.00016767,2]
[365186908,1749525063257,-490.0,0.00016767,2]
[365186909,1749525063267,-490.0,0.00016767,2]
[365186910,1749525063276,-490.0,0.00016767,2]
[365186911,1749525063286,-395.78244771,0.00016767,2]
[365186912,1749525063296,-490.0,0.00016767,2]
[365186913,1749525063307,-490.0,0.00016767,2]
[365186914,1749525063317,-490.0,0.00016767,2]
[365186915,1749525063326,-490.0,0.00016767,2]
[365186916,1749525063336,-490.0,0.00016767,2]
[365186917,1749525063346,-490.0,0.00016767,2]
[365186918,1749525063356,-490.0,0.00016767,2]
[365186919,1749525063366,-490.0,0.00016767,2]
[365186920,1749525063376,-490.0,0.00016767,2]
[365186921,1749525063386,-262.76421775,0.00016767,2]
[365186922,1749525063396,-490.0,0.00016767,2]
[365186923,1749525063406,-490.0,0.00016767,2]
[365186924,1749525063416,-496.63,0.00016767,2]
[365186925,1749525063425,-490.0,0.00016767,2]
[365186926,1749525063435,-490.0,0.00016767,2]
[365186927,1749525063445,-490.0,0.00016767,2]
[365186928,1749525063455,-490.0,0.00016767,2]
[365186929,1749525063465,-449.39429131,0.00016767,2]
[365186930,1749525063474,-490.0,0.00016767,2]
[365186931,1749525063484,-490.0,0.00016767,2]
[365186932,1749525063495,-490.0,0.00016767,2]
[365186933,1749525063505,-490.0,0.00016767,2]
[365186934,1749525063515,-490.0,0.00016767,2]
[365186935,1749525063524,-490.0,0.00016767,2]
[365186936,1749525063534,-490.0,0.00016767,2]
[365186937,1749525063545,-490.0,0.00016767,2]
[365186938,1749525063556,-407.60847003,0.00016767,2]
[365186939,1749525063565,-557.45730888,0.00016767,2]
[365186940,1749525063575,-584.90797772,0.00016767,2]
[365186941,1749525063587,-490.0,0.00016767,2]
[365186942,1749525063597,-480.55499379,0.00016767,2]
[365186943,1749525063608,-460.0,0.00016767,2]
[365186944,1749525063618,-490.0,0.00016767,2]
[365186945,1749525063629,-490.0,0.00016767,2]